Workbook

Sheet Лист1
AB4: 1 | BW4: =SUM(AB4:BV4) -> 1
V6: Пом. дир. по реализ.круп. инфрастр. Костромин А.С. | X6: Пом. дир. по кап.стр. Трубников А.В. | Z6: Ученый секретарь Чеплаков А.П | AF6: Почетный директор Савин И.А. | AJ6: Группа советников и консультантов дирекции
V7: 1 | X7: 1 | Z7: 1 | AF7: 1 | AJ7: 5
V8: 0 | X8: 0 | Z8: 0 | AF8: 0 | AJ8: 1.5 | BW8: =SUM(V7:BV7) -> 9
BX9: =AJ8 -> 1.5
BK10: Главный инженер Агапов Н.Н. | BO10: Пом. дир. по фин.вопр. Слесаренко А.В. | BQ10: Пом. по общ. вопросам Анисимов Ю.С.
V11: 4 | BK11: 1 | BO11: 1 | BQ11: 1 | BX11: =SUM(A11:BW11) -> 7
Z12: 0 | BL12: 0 | BO12: 0 | BQ12: 0 | BY12: =SUM(BL12:BX12) -> 0
B16: =B21+D21+F21+H21+J21+L21+N21+P21+R21+T21+V21 -> 419.7 | X16: =X21+Z21+AB21+1 -> 78.8 | AD16: =AD21+AF21+AH21+AJ21+1 -> 162.73 | AN16: =AN21+AP21+AR21+AT21+1 -> 110.6 | AV16: =AX21+AZ21+BB21+BD21+AV21 -> 73.2 | BF16: 4 | BJ16: =BJ21+BL21+BH21 -> 114.5 | BQ16: =BQ21+BS21 -> 55.5 | BV16: =SUM(A16:BU16)+BO21+BF21+AL21 -> 1113.53
B17: =B22+D22+F22+H22+J22+L22+N22+P22+R22 -> 9 | X17: =X22+Z22+AB22 -> 13 | AD17: =AD22+AF22+AH22+AJ22 -> 44 | AN17: =AT22+AR22+AP22+AN22 -> 11.5 | AV17: =AX22+AZ22+BB22 -> 10 | BF17: 0 | BJ17: 0 | BQ17: 0 | BW17: =SUM(A17:BV17)+BO22 -> 88.5
B20: Управление | D20: НЭСОП Кобец А.Г. | F20: НЭОСМТ Никифоров Д.Н. | H20: НЭОУС Сумбаев А.П. | J20: НЭОИФПУ Сидоров А.И | L20: НТОП Волков В.И | N20: НЭОИКН Тузиков А.В. | P20: НЭОРС Бровко О.И. | R20: НИОСЭН Карпинский В.Н | T20: НИКО Константинов А.В. | V20: ДСН Алфеев А.В | X20: НЭОФТИ Малахов А.И | Z20: НЭОСФМС Пискунов Н.М. | AB20: СФСКЯ Кривенков Д.О. | AD20: НЭОМЦД Головатюк В.М | AF20: НЭОФСТИ NICA Теряев О.В. | AH20: НЭОССАиРП Корзенеа А.Ю. | AJ20: НЭОБМН Капишин М.Н. | AL20: СИСТ Долбилов А.Г. | AN20: НЭФТИ на RHIC Панебратцев Ю.А. | AP20: НЭОФТИ на LHC Водопьянов А.С. | AR20: НЭОФ на CMS Коржавин В.Ю. | AT20: Сект.физики на ATLAS Солошенко А.А. | AV20: Управление | AX20: НЭОАФИ Слепнев В.М. | AZ20: НМОКТС Мурин Ю.А. | BB20: СРС Шаляпин В.Н. | BD20: СКИ Филиппов Ю.П. | BF20: ИЭТО Семин Н.В. | BH20: Управление | BJ20: КО Топилин Н.Д. | BL20: ЦОЭП Цветков А.А. | BO20: ПФБ | BQ20: Адм. бюро | BS20: Хоз. отдел Новикова Е.Н.
B21: 8.3 | D21: 6.75 | F21: =SUM(F25,F31,F37,F43,F46,F52,F55,F61,F67,F72) -> 114.75 | H21: 9 | J21: =SUM(J25,J31,J34,J40,J43) -> 15.6 | L21: 37.5 | N21: =SUM(N25,N31,N34,N40,N43,N49,N55,N61,N64,N67) -> 83.3 | P21: 28 | R21: 47 | T21: 51 | V21: 18.5 | X21: 35.8 | Z21: 27 | AB21: 15 | AD21: 69.1 | AF21: 20.5 | AH21: 44.3 | AJ21: 27.83 | AL21: 10.5 | AN21: 33 | AP21: 44.2 | AR21: 25.9 | AT21: 6.5 | AV21: 4 | AX21: 18 | AZ21: 33.95 | BB21: 11.25 | BD21: 6 | BF21: 67 | BH21: 9 | BJ21: 29 | BL21: 76.5 | BO21: 17 | BQ21: 15.5 | BS21: 40
B22: 1 | D22: 1 | F22: =SUM(F26,F32,F38,F44,F47,F53,F56,F62,F68,F73) -> 2 | H22: 0 | J22: =SUM(J26,J32,J35,J41,J44) -> 0 | L22: 2 | N22: =SUM(N26,N32,N35,N41,N44,N50,N56,N62,N65,N68) -> 2 | P22: 0 | R22: 1 | T22: 0 | V22: 0 | X22: 12 | Z22: 0 | AB22: 1 | AD22: 15.5 | AF22: 12.5 | AH22: 11 | AJ22: 5 | AL22: 0 | AN22: 2.5 | AP22: 2 | AR22: 4 | AT22: 3 | AV22: 0 | AX22: 1 | AZ22: 8 | BB22: 1 | BD22: 0 | BF22: 0 | BH22: 0 | BJ22: 0 | BL22: 0 | BO22: 1 | BQ22: 0 | BS22: 0
F24: Руководство | J24: Руководство | L24: Руководство | N24: Руководство | P24: Руководство | R24: Руководство | T24: Руководство | X24: Руководство | Z24: Руководство | AD24: Руководство | AF24: Руководство | AH24: Сектор 1 Мадигожин Д.Т. | AJ24: Руководство | AN24: Руководство | AR24: Руководство | AX24: Руководство | AZ24: Руководство | BD24: Управление | BF24: Руководство | BJ24: КБ №1 Шабунов А.В. | BL24: Руководство | BO24: Руководство | BQ24: Группа 1 | BS24: Руководство
B25: 8.3 | D25: 6.75 | F25: 14 | H25: 9 | J25: 1.1 | L25: 2 | N25: 3.6 | P25: 1 | R25: 3 | T25: 2 | V25: 7.5 | X25: 5.5 | Z25: 2 | AB25: 15 | AD25: 5.5 | AF25: 1 | AH25: 9.3 | AJ25: 1 | AN25: 3 | AR25: 3 | AT25: 6.5 | AV25: 4 | AX25: 1 | AZ25: 1 | BB25: 11.25 | BD25: 2 | BF25: 1 | BH25: 9 | BJ25: 4 | BL25: 3 | BO25: 1 | BQ25: 11.5 | BS25: 2
B26: 1 | D26: 1 | F26: 0 | H26: 0 | J26: 0 | L26: 0 | N26: 1 | P26: 0 | R26: 0 | T26: 0 | V26: 0 | X26: 2 | Z26: 0 | AB26: 1 | AD26: 1 | AF26: 3 | AH26: 3 | AJ26: 0 | AN26: 0 | AR26: 0 | AT26: 3 | AV26: 0 | AX26: 0 | AZ26: 0 | BB26: 1 | BD26: 0 | BF26: 0 | BH26: 0 | BJ26: 0 | BL26: 0 | BO26: 0 | BQ26: 0 | BS26: 0
BD27: Группа 1 Микляев В.М. | BJ27: Группа 1 Гусаков Ю.В. | BV27: =BW4+BW8+BX11+BV16 -> 1130.53 | BW27: =BY12+BW17+BX9 -> 90 | BX27: Итого: | BY27: =BV27+BW27 -> 1220.53
BD28: 4 | BJ28: 9
AD29: . | BD29: 0
F30: Сектор 1 | J30: Сектор 1 Фатеев А.А. | L30: Сектор 1 Михайлов В.А. | N30: Сектор 1 | P30: Сектор 1 | R30: Сектор №1 | T30: Сектор 1 Дорофеев Г.Л. | V30: Группа 1 Пивин Р.В. | X30: Группа 1 Анисимов Ю.С. | Z30: Группа 1 | AD30: Сектор 1 Мовчан С.А. | AF30: Сектор 1 Рогачевский О.В. | AH30: Сектор 2 Нагайцев А.П. | AJ30: Сектор 1 | AN30: Сектор 1 Токарев М.В. | AP30: Сектор 1 Батюня Б.Ф. | AR30: Сектор 1 Шматов С.В. | AX30: Сектор 1 Базылев С.Н. | AZ30: Сектор 1 | BF30: Группа 1 Яковлев В.В. | BL30: Группа 1 | BO30: Группа 1 Блинникова М.В. | BQ30: Группа 2 Чеплаков А.П. | BS30: Группа 1
F31: 5 | J31: 3.5 | L31: 12 | N31: 21.9 | P31: 1 | R31: 0 | T31: 6.5 | X31: 4 | Z31: 9 | AD31: 28 | AF31: 5 | AH31: 15.5 | AJ31: 14.83 | AN31: 14.5 | AP31: 8.1 | AR31: 9.1 | AX31: 14 | AZ31: 9.1 | BF31: 14.5 | BL31: 5 | BO31: 11 | BQ31: 4 | BS31: 14
F32: 0 | J32: 0 | L32: 1 | N32: 0 | P32: 0 | R32: 0 | T32: 0 | X32: 1 | Z32: 0 | AD32: 0 | AF32: 1.5 | AH32: 2 | AJ32: 5 | AN32: 2.5 | AP32: 1 | AR32: 4 | AX32: 1 | AZ32: 3.5 | BF32: 0 | BL32: 0 | BO32: 0 | BQ32: 0 | BS32: 0
J33: Группа 1 | L33: Группа 1 Романов С.В. | N33: Группа 1 Базанов А.М. | P33: Группа 1 Шумков В.М. | R33: Группа 1 Осипенков А.Л. | T33: Группа 1 | AF33: группа 2 | AH33: группа 1 Кокоулина Е.С. | BJ33: КБ №2 Серочкин Е.В.
J34: 2 | L34: 3 | N34: 5 | P34: 15 | R34: 24 | T34: 3 | AF34: 2 | AH34: 3 | BJ34: 16
J35: 0 | L35: 0 | N35: 0 | P35: 0 | R35: 0 | T35: 0 | AF35: 1 | AH35: 3
F36: Сектор 2 | P36: Группа 2 Иванов Е.В. | R36: Группа 2 Филиппов Н.А. | X36: Сектор 1 Литвиненко А.Г. | Z36: Сектор 1 Кириллов Д.А. | AD36: Сектор 2 | AJ36: Сектор 2 Замятин Н.И. | AN36: Сектор 2 Юревич В.И. | AP36: Сектор 2 Додохов В.Х. | AR36: Сектор 2 Горбунов Н.В. | AX36: Сектор 2 | AZ36: Сектор 2 | BF36: Группа 2 Коробков А.И. | BL36: Группа 2 Соловьев А.К. | BO36: Группа 2 | BS36: Группа 2
F37: 29 | P37: 6 | R37: 9.5 | X37: 5 | Z37: 3.5 | AD37: 25.1 | AJ37: 12 | AN37: 15.5 | AP37: 10 | AR37: 13.8 | AX37: 3 | AZ37: 4 | BF37: 14 | BL37: 9 | BO37: 3 | BS37: 24
F38: 0 | P38: 0 | R38: 0 | X38: 4 | Z38: 0 | AD38: 5.5 | AJ38: 0 | AN38: 0 | AP38: 0 | AR38: 0 | AX38: 0 | AZ38: 1.5 | BF38: 0 | BL38: 0 | BO38: 0 | BS38: 0
J39: Сектор2 | L39: Сектор 2 Рукояткин П.А. | N39: Сектор 2 | R39: Группа 3 Блинов Н.А. | T39: Группа 1 Швидкий Д.С. | Z39: группа 1 | AF39: Сектор 2 Колесников В.И. | AH39: Сектор 3 Кекелидзе Г.Д.
J40: 6 | L40: 3 | N40: 19.8 | R40: 10.5 | T40: 12 | Z40: 3 | AF40: 8 | AH40: 12.5
J41: 0 | L41: 0 | N41: 1 | R41: 1 | T41: 0 | Z41: 0 | AF41: 7 | AH41: 0
F42: Сектор 3 | J42: Группа 1 | N42: Группа1 Воронин А.А. | P42: Группа 1 Гребенцов А.Ю. | X42: Сектор 3 Афанасьев С.В. | AD42: Сектор 3 Рослон К. | AH42: Группа 1 Еник Т.Л. | AP42: Сектор 3 Балдин А.А. | AZ42: Сектор3 | BF42: Груаппа 3 Черняев В.П. | BL42: Группа 3 Смирнов Е.Г. | BO42: Группа 3 Цымбулов М.И.
F43: 14 | J43: 3 | N43: 3 | P43: 5 | X43: 10.3 | AD43: 6.5 | AH43: 4 | AP43: 4.5 | AZ43: 19.85 | BF43: 37.5 | BL43: 5 | BO43: 2
F44: 0 | J44: 0 | N44: 0 | P44: 0 | X44: 2 | AD44: 8 | AH44: 3 | AP44: 1 | AZ44: 3 | BF44: 0 | BL44: 0 | BO44: 1
F45: группа 1 Петров М.В. | L45: Сектор 3 Лебедев Н.И. | T45: Сектор 2 Митрофанова Ю.А. | Z45: Сектор 2 Ладыгин В.П. | AD45: Группа1 Егоров Д.С. | AF45: Группа 1 Герценбергер К.В. | AP45: группа 1
F46: 6 | L46: 5.5 | T46: 1 | Z46: 9.5 | AD46: 4 | AF46: 4.5 | AP46: 4
F47: 0 | L47: 0 | T47: 0 | Z47: 0 | AD47: 1 | AF47: 0 | AP47: 0
L48: Группа 1 Пиляр Н.В. | N48: Сектор 3 Донец Е.Е. | T48: группа 1 | X48: Сектор 4 Зарубин П.И. | AP48: Сектор 2 Харьюзов П.Р. | BL48: Участок 1 Нукин А.Н.
L49: 4 | N49: 12 | T49: 18 | X49: 5 | AP49: 6.1 | BL49: 20.5
L50: 0 | N50: 0 | T50: 0 | X50: 2 | AP50: 0 | BL50: 0
F51: Сектор 4 Борисов В.В. | L51: Группа 2 Горбачев Е.В. | T51: группа 2 Булах А.П. | X51: группа Браднова В. | AP51: группа 3 Троян А.Ю.
F52: 6 | L52: 4 | T52: 8.5 | X52: 2 | AP52: 6.5
F53: 2 | L53: 1 | T53: 0 | X53: 1 | AP53: 0
F54: группа 1 Шемчук А.В. | N54: Сектор 4 Фимушкин В.В. | X54: группа 2 Русакова В.В. | BL54: Участок 2 Фирсов Н.В.
F55: 9 | N55: 10 | X55: 4 | BL55: 14.5
F56: 0 | N56: 0 | X56: 0 | BL56: 0
L57: Сектор 4 Александров В.С.
L58: 4
L59: 0
F60: группа 1 | N60: Сектор 5 Кобец В.В. | BL60: Участок 3 Миловидова В.А.
F61: 7 | N61: 1.5 | BL61: 2.5
F62: 0 | N62: 0 | BL62: 0
N63: Группа 1 Шабратов В.Г.
N64: 2.5
N65: 0
F66: группа 2 Коровкин С.А. | N66: группа1 | BL66: Участок 4 Федюрко Н.В.
F67: 17 | N67: 4 | BL67: 17
F68: 0 | N68: 0 | BL68: 0
F71: группа 3 Новиков М.С.
F72: 7.75
F73: 0

Sheet Лист2

Sheet Лист3
